fUST/lending_fUST_20250111
["ID","MTS","AMOUNT","RATE_DAILY","PERIOD"]
[348469004,1736543448247,-715.23,0.00023287,3]
[348469006,1736543448256,-608.37,0.00023287,3]
[348469008,1736543448266,-2368.39722934,0.00023287,3]
[348469179,1736544623105,157.997115,0.00013973,2]
[348469197,1736544631996,-4007.95699047,0.0002,2]
[348469198,1736544632006,-595.99283301,0.0002,2]
[348469199,1736544632015,-300.0,0.00020789,2]
[348469200,1736544632024,-23501.64679676,0.0002079,2]
[348469201,1736544632033,-647.0444198,0.00020902,2]
[348469202,1736544632043,-18912.5082919,0.00020917,2]
[348469203,1736544632052,-2002.30795559,0.00020984,2]
[348469204,1736544632061,-2002.30795559,0.00020987,2]
[348469206,1736544632070,-2002.30795559,0.0002099,2]
[348469207,1736544632079,-3153.8484681,0.00021,2]
[348469210,1736544632090,-324.25846083,0.00021007,2]
[348469211,1736544632099,-61637.88558438,0.000215,2]
[348469213,1736544632111,-157.997115,0.00021661,2]
[348469216,1736544632123,-166.25433667,0.00021817,2]
[348469218,1736544632132,-407.65496299,0.00021916,2]
[348469219,1736544632142,-634.32466211,0.00021916,7]
[348469221,1736544632151,-154.47,0.00021917,2]
[348469223,1736544632160,-500.0,0.00021917,3]
[348469225,1736544632170,-155.034,0.00021917,2]
[348469228,1736544632179,-500.0,0.00021917,3]
[348469231,1736544632189,-690.17,0.00021917,3]
[348469234,1736544632198,-500.0,0.00021917,3]
[348469237,1736544632207,-500.0,0.00021917,3]
[348469240,1736544632217,-154.15054172,0.00021917,3]
[348469243,1736544632227,-500.0,0.00021917,3]
[348469245,1736544632237,-500.0,0.00021917,3]
[348469247,1736544632249,-500.0,0.00021917,3]
[348469250,1736544632259,-500.0,0.00021917,3]
[348469252,1736544632268,-500.0,0.00021917,2]
[348469254,1736544632278,-500.0,0.00021917,3]
[348469256,1736544632288,-500.0,0.00021917,3]
[348469258,1736544632297,-500.0,0.00021917,3]
[348469260,1736544632306,-500.0,0.00021917,3]
[348469262,1736544632316,-500.0,0.00021917,3]
[348469264,1736544632325,-500.0,0.00021917,3]
[348469266,1736544632334,-500.0,0.00021917,3]
[348469268,1736544632343,-564.41,0.00021917,3]
[348469270,1736544632354,-500.0,0.00021917,3]
[348469272,1736544632363,-500.0,0.00021917,3]
[348469274,1736544632374,-500.0,0.00021917,3]
[348469276,1736544632383,-615.19,0.00021917,3]
[348469278,1736544632393,-500.0,0.00021917,3]
[348469280,1736544632402,-500.0,0.00021917,3]
[348469282,1736544632412,-500.0,0.00021917,3]
[348469284,1736544632421,-500.0,0.00021917,3]
[348469286,1736544632431,-541.11,0.00021917,3]
[348469288,1736544632441,-500.0,0.00021917,3]
[348469290,1736544632451,-500.0,0.00021917,3]
[348469292,1736544632460,-500.0,0.00021917,3]
[348469294,1736544632470,-500.0,0.00021917,3]
[348469296,1736544632479,-500.0,0.00021917,3]
[348469298,1736544632488,-500.0,0.00021917,3]
[348469300,1736544632498,-500.0,0.00021917,3]
[348469302,1736544632507,-500.0,0.00021917,3]
[348469304,1736544632517,-500.0,0.00021917,3]
[348469306,1736544632526,-500.0,0.00021917,3]
[348469308,1736544632535,-358.27970429,0.00021917,3]
[348469310,1736544632544,-500.0,0.00021917,3]
[348469312,1736544632554,-500.0,0.00021917,3]
[348469315,1736544632678,-500.0,0.00021917,3]
[348469316,1736544632690,-210.46,0.00021917,3]
[348469317,1736544632700,-500.0,0.00021917,3]
[348469318,1736544632711,-500.0,0.00021917,3]
[348469319,1736544632720,-500.0,0.00021917,3]
[348469320,1736544632730,-500.0,0.00021917,3]
[348469321,1736544632740,-500.0,0.00021917,3]
[348469322,1736544632749,-500.0,0.00021917,3]
[348469323,1736544632759,-500.0,0.00021917,3]
[348469324,1736544632769,-500.0,0.00021917,3]
[348469325,1736544632780,-500.0,0.00021917,3]
[348469326,1736544632789,-500.0,0.00021917,3]
[348469327,1736544632799,-500.0,0.00021917,3]
[348469328,1736544632810,-500.0,0.00021917,3]
[348469329,1736544632820,-500.0,0.00021917,3]
[348469330,1736544632830,-500.0,0.00021917,3]
[348469331,1736544632841,-204.103233,0.00021917,3]
[348469332,1736544632851,-500.0,0.00021917,3]
[348469333,1736544632862,-500.0,0.00021917,3]
[348469334,1736544632873,-500.0,0.00021917,3]
[348469335,1736544632883,-500.0,0.00021917,3]
[348469336,1736544632893,-500.0,0.00021917,3]
[348469337,1736544632903,-500.0,0.00021917,3]
[348469338,1736544632913,-500.0,0.00021917,3]
[348469339,1736544632923,-500.0,0.00021917,3]
[348469340,1736544632932,-4875.82,0.00021917,3]
[348469341,1736544632942,-500.0,0.00021917,3]
[348469342,1736544632952,-500.0,0.00021917,3]
[348469343,1736544632961,-500.0,0.00021917,2]
[348469344,1736544632971,-603.32466342,0.00021917,3]
[348469345,1736544632981,-500.0,0.00021917,3]
[348469346,1736544632990,-189.16917728,0.00021917,2]
[348469347,1736544633000,-500.0,0.00021917,3]
[348469348,1736544633010,-689.44,0.00021917,3]
[348469349,1736544633019,-500.0,0.00021917,3]
[348469350,1736544633029,-790.45,0.00021917,3]
[348469351,1736544633038,-500.0,0.00021917,3]
[348469352,1736544633048,-571.56,0.00021917,3]
[348469353,1736544633057,-500.0,0.00021917,3]
[348469354,1736544633067,-386.90345412,0.00021917,3]
[348469355,1736544633076,-853.03,0.00021917,3]
[348469356,1736544633086,-500.0,0.00021917,3]
[348469357,1736544633095,-647.95,0.00021917,3]
[348469358,1736544633105,-500.0,0.00021917,3]
[348469359,1736544633115,-1782.3,0.00021917,3]
[348469360,1736544633125,-791.84,0.00021917,2]
[348469361,1736544633134,-919.69,0.00021917,3]
[348469362,1736544633144,-500.0,0.00021917,3]
[348469363,1736544633153,-449.48,0.00021917,3]
[348469364,1736544633163,-500.0,0.00021917,3]
[348469365,1736544633172,-2424.65,0.00021917,3]
[348469366,1736544633182,-179.69289885,0.00021917,3]
[348469367,1736544633193,-550.55,0.00021917,3]
[348469368,1736544633202,-744.21,0.00021917,3]
[348469369,1736544633211,-773.33,0.00021917,3]
[348469370,1736544633221,-500.0,0.00021917,3]
[348469371,1736544633230,-3361.53,0.00021917,3]
[348469372,1736544633242,-500.0,0.00021917,3]
[348469373,1736544633251,-500.0,0.00021917,3]
[348469374,1736544633261,-508.13,0.00021917,3]
[348469375,1736544633271,-500.0,0.00021917,3]
[348469376,1736544633280,-500.0,0.00021917,3]
[348469377,1736544633290,-500.0,0.00021917,3]
[348469378,1736544633300,-500.0,0.00021917,3]
[348469379,1736544633309,-500.0,0.00021917,3]
[348469380,1736544633319,-500.0,0.00021917,3]
[348469381,1736544633328,-500.0,0.00021917,3]
[348469382,1736544633337,-500.0,0.00021917,3]
[348469383,1736544633347,-1654.95,0.00021917,3]
[348469384,1736544633357,-500.0,0.00021917,3]
[348469385,1736544633366,-500.0,0.00021917,3]
[348469386,1736544633376,-500.0,0.00021917,3]
[348469387,1736544633386,-242.28,0.00021917,3]
[348469388,1736544633395,-500.0,0.00021917,3]
[348469389,1736544633405,-500.0,0.00021917,3]
[348469390,1736544633415,-500.0,0.00021917,3]
[348469391,1736544633424,-500.0,0.00021917,3]
[348469392,1736544633434,-500.0,0.00021917,3]
[348469393,1736544633444,-500.0,0.00021917,3]
[348469394,1736544633453,-500.0,0.00021917,3]
[348469395,1736544633463,-500.0,0.00021917,3]
[348469396,1736544633472,-500.0,0.00021917,3]
[348469397,1736544633482,-1077.83,0.00021917,3]
[348469398,1736544633491,-500.0,0.00021917,3]
[348469399,1736544633501,-500.0,0.00021917,3]
[348469400,1736544633510,-500.0,0.00021917,3]
[348469401,1736544633519,-651.86,0.00021917,3]
[348469402,1736544633529,-500.0,0.00021917,3]
[348469403,1736544633538,-500.0,0.00021917,3]
[348469404,1736544633547,-511.32223319,0.00021917,3]
[348469405,1736544633557,-500.0,0.00021917,3]
[348469406,1736544633567,-1735.87,0.00021917,3]
[348469407,1736544633576,-500.0,0.00021917,3]
[348469408,1736544633585,-500.0,0.00021917,3]
[348469409,1736544633594,-500.0,0.00021917,3]
[348469410,1736544633603,-500.0,0.00021917,3]
[348469411,1736544633613,-4250.66,0.00021917,3]
[348469412,1736544633622,-838.81,0.00021917,3]
[348469413,1736544633631,-740.26,0.00021917,3]
[348469414,1736544633641,-19052.04,0.00021917,3]
[348469415,1736544633650,-938.97,0.00021917,3]
[348469416,1736544633660,-500.0,0.00021917,3]
[348469417,1736544633669,-500.0,0.00021917,3]
[348469418,1736544633679,-500.0,0.00021917,3]
[348469419,1736544633688,-1478.74,0.00021917,3]
[348469420,1736544633697,-776.87,0.00021917,3]
[348469421,1736544633707,-501.01795844,0.00021973,2]
[348469422,1736544633716,-1271.31,0.00022,2]
[348469423,1736544633726,-369.10010123,0.00022,2]
[348469424,1736544633736,-166.25433667,0.00022091,2]
[348469425,1736544633745,-726.852,0.0002213,2]
[348469426,1736544633755,-500.0,0.00022173,2]
[348469427,1736544633764,-500.0,0.00022173,2]
[348469428,1736544633774,-500.0,0.0002219,3]
[348469429,1736544633784,-500.0,0.0002219,3]
[348469430,1736544633794,-500.0,0.0002219,3]
[348469431,1736544633803,-500.0,0.00022191,3]
[348469432,1736544633812,-500.0,0.00022191,3]
[348469433,1736544633821,-690.17,0.00022191,3]
[348469434,1736544633830,-500.0,0.00022191,3]
[348469435,1736544633840,-500.0,0.00022191,3]
[348469436,1736544633850,-204.18445614,0.00022191,3]
[348469437,1736544633860,-500.0,0.00022191,2]
[348469438,1736544633869,-500.0,0.00022191,3]
[348469439,1736544633879,-500.0,0.00022191,3]
[348469440,1736544633888,-500.0,0.00022191,3]
[348469441,1736544633898,-508.04,0.00022191,3]
[348469442,1736544633907,-564.41,0.00022191,3]
[348469443,1736544633917,-500.0,0.00022191,3]
[348469444,1736544633926,-500.0,0.00022191,3]
[348469445,1736544633937,-615.19,0.00022191,3]
[348469446,1736544633946,-500.0,0.00022191,3]
[348469447,1736544633956,-541.11,0.00022191,3]
[348469448,1736544633965,-500.0,0.00022191,3]
[348469449,1736544633975,-500.0,0.00022191,3]
[348469450,1736544633985,-500.0,0.00022191,3]
[348469451,1736544633995,-500.0,0.00022191,3]
[348469452,1736544634004,-500.0,0.00022191,3]
[348469453,1736544634014,-500.0,0.00022191,3]
[348469454,1736544634024,-500.0,0.00022191,3]
[348469455,1736544634033,-500.0,0.00022191,3]
[348469456,1736544634043,-500.0,0.00022191,3]
[348469457,1736544634053,-500.0,0.00022191,3]
[348469458,1736544634062,-500.0,0.00022191,3]
[348469459,1736544634072,-500.0,0.00022191,3]
[348469460,1736544634082,-500.0,0.00022191,3]
[348469461,1736544634091,-500.0,0.00022191,3]
[348469462,1736544634101,-500.0,0.00022191,3]
[348469463,1736544634110,-500.0,0.00022191,3]
[348469464,1736544634119,-500.0,0.00022191,3]
[348469465,1736544634129,-500.0,0.00022191,3]
[348469466,1736544634139,-500.0,0.00022191,3]
[348469467,1736544634150,-500.0,0.00022191,3]
[348469468,1736544634160,-500.0,0.00022191,3]
[348469469,1736544634170,-500.0,0.00022191,3]
[348469470,1736544634179,-500.0,0.00022191,3]
[348469471,1736544634190,-500.0,0.00022191,3]
[348469472,1736544634200,-638.4,0.00022191,3]
[348469473,1736544634209,-500.0,0.00022191,3]
[348469474,1736544634219,-500.0,0.00022191,3]
[348469475,1736544634229,-239.49079237,0.00022191,3]
[348469476,1736544634239,-326.79554386,0.00022191,3]
[348469477,1736544634250,-500.0,0.00022191,3]
[348469478,1736544634260,-4875.82,0.00022191,3]
[348469479,1736544634270,-500.22659877,0.00022191,3]
[348469480,1736544634279,-689.44,0.00022191,3]
[348469481,1736544634288,-500.0,0.00022191,3]
[348469482,1736544634298,-790.45,0.00022191,3]
[348469483,1736544634308,-500.0,0.00022191,3]
[348469484,1736544634317,-571.56,0.00022191,3]
[348469485,1736544634327,-853.03,0.00022191,3]
[348469486,1736544634337,-500.0,0.00022191,3]
[348469487,1736544634347,-647.95,0.00022191,3]
[348469488,1736544634357,-1782.3,0.00022191,3]
[348469489,1736544634366,-791.84,0.00022191,2]
[348469490,1736544634376,-919.69,0.00022191,3]
[348469491,1736544634386,-500.0,0.00022191,3]
[348469492,1736544634395,-486.90631197,0.00022191,3]
[348469493,1736544634405,-2424.65,0.00022191,3]
[348469494,1736544634414,-550.55,0.00022191,3]
[348469495,1736544634423,-744.21,0.00022191,3]
[348469496,1736544634433,-773.33,0.00022191,3]
[348469497,1736544634442,-500.0,0.00022191,3]
[348469498,1736544634451,-3361.53,0.00022191,3]
[348469499,1736544634461,-500.0,0.00022191,3]
[348469500,1736544634471,-508.13,0.00022191,3]
[348469501,1736544634480,-500.0,0.00022191,3]
[348469502,1736544634490,-632.59152035,0.00022191,3]
[348469503,1736544634499,-500.0,0.00022191,3]
[348469504,1736544634508,-500.0,0.00022191,3]
[348469505,1736544634518,-500.0,0.00022191,3]
[348469506,1736544634528,-500.0,0.00022191,3]
[348469507,1736544634537,-500.0,0.00022191,3]
[348469508,1736544634546,-1654.95,0.00022191,3]
[348469509,1736544634555,-500.0,0.00022191,3]
[348469510,1736544634566,-500.0,0.00022191,3]
[348469511,1736544634577,-500.0,0.00022191,3]
[348469512,1736544634587,-500.0,0.00022191,3]
[348469513,1736544634597,-500.0,0.00022191,3]
[348469514,1736544634606,-1077.83,0.00022191,3]
[348469515,1736544634617,-500.0,0.00022191,3]
[348469516,1736544634626,-500.0,0.00022191,3]
[348469517,1736544634637,-651.86,0.00022191,3]
[348469518,1736544634650,-500.0,0.00022191,3]
[348469519,1736544634660,-365.7040448,0.00022191,3]
[348469520,1736544634670,-500.0,0.00022191,3]
[348469521,1736544634679,-500.0,0.00022191,3]
[348469522,1736544634690,-1735.87,0.00022191,3]
[348469523,1736544634700,-500.0,0.00022191,3]
[348469524,1736544634710,-507.48236088,0.00022191,3]
[348469525,1736544634720,-500.0,0.00022191,3]
[348469526,1736544634730,-500.0,0.00022191,3]
[348469527,1736544634740,-4250.66,0.00022191,3]
[348469528,1736544634750,-838.81,0.00022191,3]
[348469529,1736544634759,-740.26,0.00022191,3]
[348469530,1736544634768,-19052.04,0.00022191,3]
[348469531,1736544634778,-938.97,0.00022191,3]
[348469532,1736544634787,-500.0,0.00022191,3]
[348469533,1736544634796,-617.64252863,0.00022191,3]
[348469534,1736544634807,-500.0,0.00022191,3]
[348469535,1736544634816,-1478.74,0.00022191,3]
[348469536,1736544634826,-776.87,0.00022191,3]
[348469537,1736544634835,-166.25433667,0.00022365,2]
[348469538,1736544634844,-500.0,0.00022464,3]
[348469539,1736544634854,-500.0,0.00022464,3]
[348469540,1736544634863,-500.0,0.00022464,3]
[348469541,1736544634872,-500.0,0.00022465,3]
[348469542,1736544634882,-500.0,0.00022465,3]
[348469543,1736544634891,-690.17,0.00022465,3]
[348469544,1736544634900,-549.88,0.00022465,3]
[348469545,1736544634910,-585.19,0.00022465,3]
[348469546,1736544634920,-500.0,0.00022465,2]
[348469547,1736544634929,-576.86,0.00022465,3]
[348469548,1736544634939,-604.52898624,0.00022465,3]
[348469549,1736544634949,-500.0,0.00022465,3]
[348469550,1736544634958,-564.41,0.00022465,3]
[348469551,1736544634967,-500.0,0.00022465,3]
[348469552,1736544634977,-500.0,0.00022465,3]
[348469553,1736544634986,-615.19,0.00022465,3]
[348469554,1736544634996,-500.0,0.00022465,3]
[348469555,1736544635005,-541.11,0.00022465,3]
[348469556,1736544635014,-500.0,0.00022465,3]
[348469557,1736544635025,-500.0,0.00022465,3]
[348469558,1736544635034,-500.0,0.00022465,3]
[348469559,1736544635043,-500.0,0.00022465,3]
[348469560,1736544635055,-500.0,0.00022465,3]
[348469561,1736544635065,-500.0,0.00022465,3]
[348469562,1736544635074,-500.0,0.00022465,3]
[348469563,1736544635084,-500.0,0.00022465,3]
[348469564,1736544635093,-209.21,0.00022465,3]
[348469565,1736544635103,-500.0,0.00022465,3]
[348469566,1736544635112,-467.66372433,0.00022465,3]
[348469567,1736544635122,-500.0,0.00022465,3]
[348469568,1736544635132,-500.0,0.00022465,3]
[348469569,1736544635142,-500.0,0.00022465,3]
[348469570,1736544635151,-500.0,0.00022465,3]
[348469571,1736544635160,-500.0,0.00022465,3]
[348469572,1736544635170,-4875.82,0.00022465,3]
[348469573,1736544635179,-689.44,0.00022465,3]
[348469574,1736544635189,-500.0,0.00022465,3]
[348469575,1736544635200,-790.45,0.00022465,3]
[348469576,1736544635209,-500.0,0.00022465,3]
[348469577,1736544635219,-571.56,0.00022465,3]
[348469578,1736544635229,-853.03,0.00022465,3]
[348469579,1736544635238,-647.95,0.00022465,3]
[348469580,1736544635250,-1782.3,0.00022465,3]
[348469581,1736544635260,-791.84,0.00022465,2]
[348469582,1736544635269,-919.69,0.00022465,3]
[348469583,1736544635279,-500.0,0.00022465,3]
[348469584,1736544635288,-2424.65,0.00022465,3]
[348469585,1736544635298,-550.55,0.00022465,3]
[348469586,1736544635307,-744.21,0.00022465,3]
[348469587,1736544635316,-773.33,0.00022465,3]
[348469588,1736544635326,-500.0,0.00022465,3]
[348469589,1736544635335,-3361.53,0.00022465,3]
[348469590,1736544635345,-500.0,0.00022465,3]
[348469591,1736544635355,-508.13,0.00022465,3]
[348469592,1736544635365,-500.0,0.00022465,3]
[348469593,1736544635375,-500.0,0.00022465,3]
[348469594,1736544635386,-500.0,0.00022465,3]
[348469595,1736544635396,-500.0,0.00022465,3]
[348469596,1736544635405,-500.0,0.00022465,3]
[348469597,1736544635415,-1654.95,0.00022465,3]
[348469598,1736544635426,-500.0,0.00022465,3]
[348469599,1736544635438,-500.0,0.00022465,3]
[348469600,1736544635448,-500.0,0.00022465,3]
[348469601,1736544635458,-1077.83,0.00022465,3]
[348469602,1736544635468,-497.82554026,0.00022465,3]
[348469603,1736544635477,-651.86,0.00022465,3]
[348469604,1736544635488,-500.0,0.00022465,3]
[348469605,1736544635498,-500.0,0.00022465,3]
[348469606,1736544635508,-500.0,0.00022465,3]
[348469607,1736544635519,-1735.87,0.00022465,3]
[348469608,1736544635531,-500.0,0.00022465,3]
[348469609,1736544635543,-500.0,0.00022465,3]
[348469610,1736544635552,-500.0,0.00022465,3]
[348469611,1736544635674,-4250.66,0.00022465,3]
[348469612,1736544635699,-838.81,0.00022465,3]
[348469613,1736544635709,-740.26,0.00022465,3]
[348469614,1736544635720,-19052.04,0.00022465,3]
[348469615,1736544635730,-938.97,0.00022465,3]
[348469616,1736544635741,-500.0,0.00022465,3]
[348469617,1736544635751,-500.0,0.00022465,3]
[348469618,1736544635760,-1478.74,0.00022465,3]
[348469619,1736544635770,-776.87,0.00022465,3]
[348469620,1736544635780,-420.0,0.00022619,2]
[348469621,1736544635789,-166.25433667,0.00022639,2]
[348469622,1736544635799,-306.0,0.00022685,2]
[348469623,1736544635810,-502.54347369,0.00022721,2]
[348469624,1736544635820,-500.0,0.00022738,3]
[348469625,1736544635830,-500.0,0.00022738,3]
[348469626,1736544635840,-500.0,0.00022739,3]
[348469627,1736544635849,-690.17,0.00022739,3]
[348469628,1736544635859,-500.0,0.00022739,2]
[348469629,1736544635868,-615.23,0.00022739,3]
[348469631,1736544635877,-564.41,0.00022739,3]
[348469632,1736544635887,-500.0,0.00022739,3]
[348469633,1736544635896,-500.0,0.00022739,3]
[348469634,1736544635906,-615.19,0.00022739,3]
[348469635,1736544635917,-500.0,0.00022739,3]
[348469636,1736544635929,-541.11,0.00022739,3]
[348469637,1736544635940,-500.0,0.00022739,3]
[348469638,1736544635950,-306.36,0.00022739,3]
[348469639,1736544635960,-500.0,0.00022739,3]
[348469640,1736544635969,-500.0,0.00022739,3]
[348469641,1736544635979,-500.0,0.00022739,3]
[348469642,1736544635988,-500.0,0.00022739,3]
[348469643,1736544635997,-500.0,0.00022739,3]
[348469644,1736544636007,-500.0,0.00022739,3]
[348469645,1736544636017,-500.0,0.00022739,3]
[348469646,1736544636026,-500.0,0.00022739,3]
[348469647,1736544636035,-239.14,0.00022739,3]
[348469648,1736544636045,-462.94586441,0.00022739,3]
[348469649,1736544636055,-500.0,0.00022739,3]
[348469650,1736544636064,-500.0,0.00022739,3]
[348469651,1736544636073,-4875.82,0.00022739,3]
[348469652,1736544636083,-689.44,0.00022739,3]
[348469653,1736544636092,-500.0,0.00022739,3]
[348469654,1736544636102,-790.45,0.00022739,3]
[348469655,1736544636111,-500.0,0.00022739,3]
[348469656,1736544636122,-571.56,0.00022739,3]
[348469657,1736544636132,-853.03,0.00022739,3]
[348469658,1736544636142,-647.95,0.00022739,3]
[348469659,1736544636152,-1782.3,0.00022739,3]
[348469660,1736544636161,-791.84,0.00022739,2]
[348469661,1736544636171,-919.69,0.00022739,3]
[348469662,1736544636181,-500.0,0.00022739,3]
[348469663,1736544636192,-2424.65,0.00022739,3]
[348469664,1736544636202,-550.55,0.00022739,3]
[348469665,1736544636212,-744.21,0.00022739,3]
[348469666,1736544636222,-773.33,0.00022739,3]
[348469667,1736544636231,-500.0,0.00022739,3]
[348469668,1736544636241,-3361.53,0.00022739,3]
[348469669,1736544636256,-500.0,0.00022739,3]
[348469670,1736544636265,-508.13,0.00022739,3]
[348469671,1736544636274,-320.51505322,0.00022739,3]
[348469672,1736544636283,-500.0,0.00022739,3]
[348469673,1736544636292,-500.0,0.00022739,3]
[348469674,1736544636301,-500.0,0.00022739,3]
[348469675,1736544636311,-500.0,0.00022739,3]
[348469676,1736544636320,-1654.95,0.00022739,3]
[348469677,1736544636329,-500.0,0.00022739,3]
[348469678,1736544636339,-500.0,0.00022739,3]
[348469679,1736544636349,-500.0,0.00022739,3]
[348469680,1736544636359,-1077.83,0.00022739,3]
[348469681,1736544636368,-651.86,0.00022739,3]
[348469682,1736544636378,-500.0,0.00022739,3]
[348469683,1736544636387,-514.17228202,0.00022739,3]
[348469684,1736544636399,-500.0,0.00022739,3]
[348469685,1736544636408,-1735.87,0.00022739,3]
[348469686,1736544636417,-500.0,0.00022739,3]
[348469687,1736544636426,-4250.66,0.00022739,3]
[348469688,1736544636437,-838.81,0.00022739,3]
[348469689,1736544636446,-740.26,0.00022739,3]
[348469690,1736544636456,-14372.70738548,0.00022739,3]
[348469691,1736544636474,-2024.74917836,0.00022739,3]
[348469692,1736544636494,-360.41287851,0.00022739,3]
[348469714,1736544637816,-150.37370596,0.000209,2]
[348469716,1736544637826,-350.54201081,0.00021499,2]
[348469718,1736544637836,-194.99257472,0.00021499,2]
[348469720,1736544637846,-500.0,0.00022173,2]
[348469722,1736544637857,-2294.17055765,0.00022739,3]
[348469724,1736544637867,-938.97,0.00022739,3]
[348469726,1736544637877,-500.0,0.00022739,3]
[348469728,1736544637887,-205.96242283,0.00022739,3]
[348469730,1736544637896,-1478.74,0.00022739,3]
[348469732,1736544637906,-248.40190602,0.00022739,3]
[348469734,1736544637917,-528.46809398,0.00022739,3]
[348469736,1736544637927,-817.57583043,0.000229,2]
[348469738,1736544637938,-166.25433667,0.00022913,2]
[348469740,1736544637947,-817.57583025,0.00022934,2]
[348469742,1736544637956,-817.57583025,0.00022969,2]
[348469744,1736544637967,-2141.38955589,0.00023,2]
[348469746,1736544637977,-251.70040235,0.00023,2]
[348469748,1736544637987,-817.57583025,0.00023003,2]
[348469750,1736544637996,-500.0,0.00023012,3]
[348469752,1736544638006,-500.0,0.00023012,3]
[348469754,1736544638015,-500.0,0.00023012,3]
[348469756,1736544638025,-500.0,0.00023013,3]
[348469758,1736544638036,-500.0,0.00023013,2]
[348469761,1736544638048,-564.41,0.00023013,3]
[348469763,1736544638061,-500.0,0.00023013,3]
[348469765,1736544638074,-500.0,0.00023013,3]
[348469767,1736544638088,-615.19,0.00023013,3]
[348469770,1736544638100,-451.49,0.00023013,3]
[348469772,1736544638112,-541.11,0.00023013,3]
[348469774,1736544638124,-500.0,0.00023013,3]
[348469776,1736544638135,-500.0,0.00023013,3]
[348469778,1736544638145,-500.0,0.00023013,3]
[348469780,1736544638158,-500.0,0.00023013,3]
[348469782,1736544638170,-500.0,0.00023013,3]
[348469785,1736544638182,-500.0,0.00023013,3]
[348469787,1736544638194,-500.0,0.00023013,3]
[348469789,1736544638206,-500.0,0.00023013,3]
[348469791,1736544638218,-473.6815925,0.00023013,3]
[348469794,1736544638234,-26.3184075,0.00023013,3]
[348469796,1736544638249,-500.0,0.00023013,3]
[348469798,1736544638261,-510.78092491,0.00023013,3]
[348469800,1736544638273,-4875.82,0.00023013,3]
[348469803,1736544638285,-689.44,0.00023013,3]
[348469805,1736544638297,-646.14003975,0.00023013,3]
[348469807,1736544638311,-790.45,0.00023013,3]
[348469809,1736544638322,-500.0,0.00023013,3]
[348469812,1736544638334,-571.56,0.00023013,3]
[348469814,1736544638346,-589.49062784,0.00023013,3]
[348469816,1736544638361,-263.53937216,0.00023013,3]
[348469818,1736544638373,-216.48976168,0.00023013,3]
[348469975,1736544639914,-431.46023832,0.00023013,3]
[348469977,1736544639924,-891.7394811,0.00023013,3]
[348470550,1736545545303,157.997115,0.00013973,2]
[348470586,1736545837937,-216.17230722,0.000189,2]
[348470588,1736545837947,-193.9243391,0.00020487,2]
[348470590,1736545837961,-1227.0679043,0.00020691,2]
[348470592,1736545837971,-861.0,0.00020742,2]
[348470594,1736545837982,-300.0,0.00020742,2]
[348470596,1736545837991,-10976.27968814,0.00020743,2]
[348470599,1736545838049,-4117.13104936,0.00020743,2]